bitfinex/quotes_BTCUSD_20251124
["timestamp","ask_amount","ask_price","bid_price","bid_amount"]
[1764007857961,0.22584324,88557.0,88556.0,0.08434665]
[1764007858163,0.22584324,88557.0,88556.0,0.08566565]
[1764007858365,0.22584324,88557.0,88556.0,0.15224867]
[1764007859051,0.22584324,88557.0,88556.0,0.08666565]
[1764007859601,0.01129177,88560.0,88556.0,0.08666565]
[1764007859803,0.01129088,88567.0,88564.0,0.22582322]
[1764007859948,0.01129075,88568.0,88565.0,0.05337]
[1764007860147,0.01129063,88569.0,88566.0,0.03075]
[1764007860349,0.22581519,88568.0,88567.0,0.03366751]
[1764007860928,0.22581519,88568.0,88567.0,0.06441751]
[1764007861128,0.22581519,88568.0,88565.0,0.02262]
[1764007861129,0.22582029,88566.0,88565.0,0.02262]
[1764007861690,0.22582029,88566.0,88565.0,0.05337]
[1764007861893,0.22582029,88566.0,88565.0,0.02262]
[1764007862194,0.22582029,88566.0,88565.0,0.05337]
[1764007862844,0.22582029,88566.0,88565.0,0.06061]
[1764007863481,0.22582029,88566.0,88565.0,0.07129]
[1764007865231,0.22582029,88566.0,88565.0,0.02986]
[1764007865438,0.22582029,88566.0,88556.0,0.00016665]
[1764007865652,0.22584324,88557.0,88556.0,0.00016665]
[1764007866096,0.25150324,88557.0,88556.0,0.00016665]
[1764007866320,0.22584324,88557.0,88556.0,0.00016665]
[1764007866938,0.22584103,88558.0,88556.0,0.00016665]
[1764007867187,0.22584324,88557.0,88556.0,0.03091665]
[1764007867391,0.0112919,88559.0,88556.0,0.00016665]
[1764007867518,0.0112919,88559.0,88558.0,0.03075]
[1764007867719,0.22583567,88560.0,88558.0,0.03075]
[1764007867925,0.22583567,88560.0,88556.0,0.2260102]
[1764007867926,0.22584069,88558.0,88556.0,0.00016665]
[1764007868127,0.57450324,88557.0,88556.0,0.00016665]
[1764007868357,0.70440665,88557.0,88556.0,0.00016665]
[1764007868593,0.71373779,88557.0,88556.0,0.00016665]
[1764007868929,0.7503041,88557.0,88556.0,0.00016665]
[1764007869130,0.01129688,88520.0,88512.0,0.04619]
[1764007869334,0.22594274,88518.0,88517.0,0.02300896]
[1764007869947,0.22594274,88518.0,88517.0,0.00038896]
[1764007870369,0.22594274,88518.0,88517.0,0.00138896]
[1764007870549,0.24853274,88518.0,88517.0,0.00038896]
[1764007870963,0.24853274,88518.0,88517.0,0.00138896]
[1764007871188,0.22594274,88518.0,88517.0,0.00038896]
[1764007871390,0.22594019,88519.0,88517.0,0.00290538]
[1764007871681,0.22594019,88519.0,88517.0,0.00038896]
[1764007871881,0.22594019,88519.0,88518.0,0.03075]
[1764007872093,0.22594019,88519.0,88518.0,0.03259007]
[1764007872333,0.22594019,88519.0,88517.0,0.00038896]
[1764007873957,0.23723638,88520.0,88518.0,0.07673]
[1764007874159,0.23723638,88520.0,88518.0,0.03139]
[1764007874381,0.22594019,88519.0,88518.0,0.03139]
[1764007874626,0.01129649,88523.0,88518.0,0.03139]
[1764007874801,0.22592558,88525.0,88522.0,0.03139]
[1764007874802,0.23722239,88525.0,88522.0,0.03139]
[1764007875005,0.23722239,88525.0,88519.0,0.04534]
[1764007875006,0.23722161,88525.0,88524.0,0.05443]
[1764007875236,0.23722161,88525.0,88524.0,0.02304]
[1764007875969,0.22592232,88526.0,88524.0,0.05443]
[1764007876165,0.22592487,88525.0,88524.0,0.05443]
[1764007877621,0.01129573,88529.0,88524.0,0.15594616]
[1764007877784,0.01129598,88527.0,88525.0,0.03139]
[1764007878205,0.01129509,88534.0,88526.0,0.03139]
[1764007878417,0.01129586,88528.0,88527.0,0.03139]
[1764007878844,0.22591367,88530.0,88527.0,0.25730794]
[1764007879046,0.23720927,88530.0,88528.0,0.02916446]
[1764007879172,0.23720927,88530.0,88529.0,0.03139]
[1764007879784,0.01129535,88532.0,88529.0,0.07673]
[1764007879999,0.22590977,88531.0,88530.0,0.03139]
[1764007880329,0.01129535,88532.0,88530.0,0.11253247]
[1764007880531,0.01129535,88532.0,88524.0,0.02304]
[1764007880532,0.22592487,88525.0,88524.0,0.02304]
[1764007881056,0.22592487,88525.0,88524.0,0.05443]
[1764007881465,0.22592232,88526.0,88524.0,0.05443]
[1764007881901,0.22592487,88525.0,88524.0,0.05443]
[1764007882109,0.0112956,88530.0,88524.0,0.05443]
[1764007882110,0.74717832,88534.0,88527.0,0.22591722]
[1764007882334,0.01129496,88535.0,88532.0,0.22590615]
[1764007882525,0.01129356,88546.0,88538.0,0.01129458]
[1764007882666,0.01129433,88540.0,88534.0,0.01129509]
[1764007882879,0.01129382,88544.0,88540.0,0.2258866]
[1764007883080,0.01129318,88549.0,88541.0,0.0112942]
[1764007883432,0.01129318,88549.0,88542.0,0.04534]
[1764007883649,0.74717832,88550.0,88548.0,0.02304]
[1764007883856,0.22586364,88549.0,88548.0,0.02304]
[1764007884083,0.22586122,88550.0,88549.0,0.03139]
[1764007884576,0.22586122,88550.0,88549.0,0.03292385]
[1764007884861,0.22586122,88550.0,88549.0,0.07838075]
[1764007885068,0.22586122,88550.0,88549.0,0.03304075]
[1764007885523,0.22586122,88550.0,88549.0,0.00165075]
[1764007886100,0.24845122,88550.0,88549.0,0.00165075]
[1764007887068,0.33356421,88550.0,88549.0,0.00165075]
[1764007887273,0.40461094,88550.0,88549.0,0.00165075]
[1764007887892,0.33356421,88550.0,88549.0,0.00165075]
[1764007888153,0.31097421,88550.0,88549.0,0.00165075]
[1764007888980,0.33356421,88550.0,88549.0,0.00165075]
[1764007890117,0.33456421,88550.0,88549.0,0.00165075]
[1764007891699,0.22686122,88550.0,88549.0,0.00165075]
[1764007892822,0.22586122,88550.0,88549.0,0.00165075]
[1764007893068,0.24945122,88550.0,88549.0,0.00165075]
[1764007893729,0.27204122,88550.0,88549.0,0.00165075]
[1764007894602,0.001,88550.0,88549.0,0.00165075]
[1764007894810,0.001,88550.0,88549.0,0.07838075]
[1764007895028,0.22686109,88550.0,88549.0,0.11110952]
[1764007895237,0.001,88550.0,88549.0,0.06576952]
[1764007895433,0.001,88550.0,88549.0,0.11110952]
[1764007895637,0.001,88550.0,88549.0,0.33697316]
[1764007898027,0.22686109,88550.0,88549.0,0.11110952]
[1764007898372,0.22586109,88550.0,88549.0,0.07838075]
[1764007899311,0.23714901,88552.0,88549.0,0.07838075]
[1764007899534,0.22586109,88550.0,88549.0,0.0001169]
[1764007899745,0.22586109,88550.0,88549.0,0.0315069]
[1764007899915,0.23714076,88555.0,88552.0,0.22585438]
[1764007900071,0.01129203,88558.0,88550.0,0.03139]
[1764007900274,0.01129203,88558.0,88555.0,0.22584805]
[1764007900508,0.22584738,88556.0,88554.0,0.03139]
[1764007900702,0.22584834,88555.0,88554.0,0.0622792]
[1764007900880,0.22584834,88555.0,88554.0,0.03139]
[1764007901563,0.22584738,88556.0,88554.0,0.03139]
[1764007901776,0.22584584,88556.0,88555.0,0.03139]
[1764007902321,0.22585854,88551.0,88550.0,0.05258]
[1764007902732,0.22585854,88551.0,88550.0,0.08397]
[1764007902942,0.22585854,88551.0,88550.0,0.04996056]
[1764007903141,0.22585854,88551.0,88550.0,0.03863]
[1764007903344,0.22584796,88557.0,88550.0,0.08397]
[1764007903558,0.22584162,88558.0,88556.0,0.03139]
[1764007903798,0.2258347,88561.0,88557.0,0.03082]
[1764007904024,0.22583626,88560.0,88558.0,0.03082]
[1764007904216,0.22583575,88560.0,88558.0,0.03082]
[1764007904425,0.22583814,88559.0,88558.0,0.03082]
[1764007904699,0.22585599,88552.0,88551.0,0.04206]
[1764007904916,0.22585854,88551.0,88550.0,0.00724]
[1764007905347,0.22585854,88551.0,88550.0,0.03806]
[1764007906475,0.22585854,88551.0,88550.0,0.08012]
[1764007906693,0.22585854,88551.0,88550.0,0.09044769]
[1764007906862,0.22585854,88551.0,88550.0,0.09195084]
[1764007907217,0.22585854,88551.0,88550.0,0.08471084]
[1764007907411,0.22585854,88551.0,88550.0,0.09195084]
[1764007907614,0.22585854,88551.0,88550.0,0.03956315]
[1764007907852,0.01129126,88564.0,88550.0,0.08176315]
[1764007908057,0.01129203,88558.0,88555.0,0.22584743]
[1764007908368,0.01129203,88558.0,88555.0,0.22584762]
[1764007908525,0.01129203,88558.0,88554.0,0.02167442]
[1764007908526,0.22584579,88556.0,88554.0,0.02167442]
[1764007908731,0.22584834,88555.0,88554.0,0.02167442]
[1764007909135,0.2371359,88557.0,88555.0,0.22584767]
[1764007909341,0.01129203,88558.0,88556.0,0.02852]
[1764007909546,0.23713311,88558.0,88557.0,0.02852]
[1764007909748,0.23713311,88558.0,88557.0,0.08378519]
[1764007909950,0.22584069,88558.0,88557.0,0.1272735]
[1764007910381,0.01129126,88564.0,88559.0,0.22583777]
[1764007910585,0.2371185,88564.0,88563.0,0.05033]
[1764007910758,0.2371185,88564.0,88563.0,0.05143419]
[1764007910959,0.2371185,88564.0,88563.0,0.14816492]
[1764007911423,0.2371185,88564.0,88563.0,0.07182419]
[1764007911651,0.2371185,88564.0,88563.0,0.02962419]
[1764007911806,0.2371185,88564.0,88563.0,0.00110419]
[1764007916821,0.2567585,88564.0,88563.0,0.00110419]
[1764007917230,0.2763985,88564.0,88563.0,0.00110419]
[1764007917438,0.2567585,88564.0,88563.0,0.00110419]
[1764007918080,0.2371185,88564.0,88563.0,0.00110419]
[1764007918954,0.22582539,88564.0,88563.0,0.07182419]
[1764007919428,0.22582539,88564.0,88563.0,0.02962419]
[1764007919615,0.01129101,88566.0,88563.0,0.02962419]
[1764007919817,0.22582539,88565.0,88564.0,0.02852]
[1764007920024,0.22582284,88565.0,88564.0,0.0422]
[1764007920158,0.01129012,88573.0,88565.0,0.25434029]
[1764007920362,0.01128872,88584.0,88573.0,0.05033]
[1764007920590,0.23706873,88582.0,88579.0,0.22578654]
[1764007920790,0.22576,88590.0,88583.0,0.25429636]
[1764007920791,0.01128821,88588.0,88583.0,0.25429636]
[1764007921014,0.01128833,88587.0,88584.0,0.05033]
[1764007921180,0.22576952,88586.0,88584.0,0.02181]
[1764007921380,0.22576952,88586.0,88585.0,0.00724]
[1764007921825,0.22579989,88574.0,88569.0,0.2258123]
[1764007922027,0.22579989,88574.0,88573.0,0.02905]
[1764007922201,0.01128961,88577.0,88573.0,0.05757]
[1764007922378,0.23707978,88578.0,88575.0,0.25431574]
[1764007922740,0.01128808,88589.0,88584.0,0.2257733]
[1764007922965,0.0112877,88592.0,88586.0,0.22576801]
[1764007923166,0.0112877,88592.0,88585.0,0.02181]
[1764007923167,0.95075191,88600.0,88591.0,0.02852]
[1764007923340,0.00011689,88596.0,88595.0,0.25426637]
[1764007923540,0.00011689,88596.0,88595.0,0.26150637]
[1764007923744,0.00011689,88596.0,88595.0,0.30370637]
[1764007924363,0.23699823,88609.0,88595.0,0.30370637]
[1764007924364,0.23259994,88609.0,88605.0,0.22572084]
[1764007924591,0.23699943,88608.0,88606.0,0.00724]
[1764007924797,0.0002,88610.0,88608.0,0.02852]
[1764007925142,0.0002,88610.0,88606.0,0.04944]
[1764007925143,0.0002,88610.0,88609.0,0.05033]
[1764007925342,0.22572089,88605.0,88604.0,0.02181]
[1764007925560,0.22572089,88605.0,88604.0,0.02905]
[1764007925766,0.22572089,88605.0,88604.0,0.08654487]
[1764007926176,0.22572089,88605.0,88604.0,0.07930487]
[1764007926347,0.22572089,88605.0,88604.0,0.02181]
[1764007926525,0.22572089,88605.0,88604.0,0.00724]
[1764007926729,0.02118579,88607.0,88604.0,0.00724]
[1764007927076,0.01128579,88607.0,88606.0,0.02852]
[1764007927279,0.0002,88610.0,88606.0,0.038497]
[1764007927556,0.0002,88610.0,88609.0,0.2542307]
[1764007927959,0.0002,88610.0,88609.0,0.2964307]
[1764007928962,0.0002,88610.0,88609.0,0.07072]
[1764007929193,0.0002,88610.0,88609.0,0.03576]
[1764007929899,0.0002,88610.0,88609.0,0.07796]
[1764007930104,0.01128617,88604.0,88601.0,0.26792976]
[1764007930376,0.22573108,88601.0,88600.0,0.02181]
[1764007930530,0.22573108,88601.0,88600.0,0.02905]
[1764007930730,0.23701262,88603.0,88600.0,0.09977]
[1764007930935,0.22573108,88601.0,88600.0,0.02181]
[1764007931134,0.22573108,88601.0,88600.0,0.02905]
[1764007931376,0.01128808,88589.0,88582.0,0.0422]
[1764007931598,0.01128782,88591.0,88589.0,0.02181]
[1764007931815,0.23704482,88591.0,88589.0,0.05033]
[1764007931989,0.23704482,88591.0,88590.0,0.08584333]
[1764007932206,0.0112868,88599.0,88590.0,0.08584333]
[1764007932207,0.23702468,88599.0,88590.0,0.12804333]
[1764007932409,0.01128655,88601.0,88598.0,0.02181]
[1764007932606,0.01077625,88601.0,88599.0,0.0072]
[1764007932944,0.01077625,88601.0,88585.0,0.00011689]
[1764007932945,0.22575749,88592.0,88585.0,0.00011689]
[1764007933160,0.0281868,88599.0,88585.0,0.00011689]
[1764007933161,0.22576849,88587.0,88585.0,0.00011689]
[1764007933361,0.22576849,88587.0,88585.0,0.03200926]
[1764007933879,0.22576849,88587.0,88586.0,0.00759863]
[1764007934650,0.01128808,88589.0,88586.0,0.00759863]
[1764007934850,0.01128808,88589.0,88588.0,0.02811]
[1764007935080,0.24266676,88587.0,88585.0,0.00011689]
[1764007935523,0.22576676,88587.0,88585.0,0.00011689]
[1764007937009,0.01128795,88590.0,88586.0,0.02811]
[1764007937210,0.01128795,88590.0,88587.0,0.02811]
[1764007937414,0.01128795,88590.0,88585.0,0.04325689]
[1764007937415,0.323,88609.0,88588.0,0.00713669]
[1764007937636,0.01128668,88600.0,88594.0,0.02195]
[1764007937889,0.01128693,88598.0,88595.0,0.0072]
[1764007938029,0.22574342,88597.0,88595.0,0.0072]
[1764007938231,0.22574342,88597.0,88596.0,0.007229]
[1764007938513,0.2370284,88598.0,88596.0,0.007229]
[1764007938848,0.23702477,88599.0,88596.0,0.007229]
[1764007939176,0.23702222,88600.0,88596.0,0.2329711]
[1764007939382,0.0112868,88599.0,88596.0,0.2329711]
[1764007939579,0.0112868,88599.0,88596.0,0.27611147]
[1764007939803,0.01128629,88603.0,88599.0,0.22573618]
[1764007939988,0.22574382,88596.0,88595.0,0.0072]
[1764007940162,0.22576785,88587.0,88586.0,0.02195]
[1764007940523,0.22576785,88587.0,88586.0,0.02954863]
[1764007940798,0.22576785,88587.0,88586.0,0.05993418]
[1764007940955,0.24266785,88587.0,88586.0,0.00039863]
[1764007941368,0.25956785,88587.0,88586.0,0.00039863]
[1764007941635,0.24266785,88587.0,88586.0,0.00039863]
[1764007942148,0.25956785,88587.0,88586.0,0.00039863]
[1764007942350,0.715558,88587.0,88586.0,0.00039863]
[1764007943204,0.681758,88587.0,88586.0,0.00039863]
[1764007943409,0.61129084,88587.0,88586.0,0.00039863]
[1764007944393,0.54876785,88587.0,88586.0,0.00039863]
[1764007945009,0.23704513,88591.0,88586.0,0.02850863]
[1764007945215,0.01128757,88593.0,88587.0,0.02811]
[1764007945421,0.01128782,88591.0,88588.0,0.02971458]
[1764007945643,0.22576021,88590.0,88588.0,0.0072]
[1764007946198,0.23705012,88589.0,88586.0,0.26890901]
[1764007946408,0.23705012,88589.0,88587.0,0.23296664]
[1764007946567,0.2257693,88586.0,88585.0,0.00011689]
[1764007946772,0.2257693,88586.0,88585.0,0.00731689]
[1764007947858,0.2257693,88586.0,88585.0,0.03542689]
[1764007948053,0.01128821,88588.0,88585.0,0.04116458]
[1764007948311,0.01128808,88589.0,88587.0,0.02811]
[1764007948518,0.01128808,88589.0,88587.0,0.2538762]
[1764007948720,0.01128782,88591.0,88588.0,0.02811]
[1764007949027,0.2257693,88586.0,88585.0,0.01305458]
[1764007949651,0.01128808,88589.0,88586.0,0.2257693]
[1764007949859,0.01128782,88591.0,88585.0,0.04116458]
[1764007949860,0.01128782,88591.0,88588.0,0.02811]
[1764007949992,0.01128795,88590.0,88587.0,0.09241151]
[1764007950206,0.23704736,88590.0,88588.0,0.04314]
[1764007950418,0.22576166,88589.0,88588.0,0.04314]
[1764007950648,0.01128668,88600.0,88588.0,0.04314]
[1764007950858,0.22575911,88590.0,88588.0,0.00033729]
[1764007951091,0.22575911,88590.0,88589.0,0.0072]
[1764007951316,0.22575911,88590.0,88589.0,0.00750663]
[1764007952124,0.22575911,88590.0,88589.0,0.00030663]
[1764007952346,0.24265911,88590.0,88589.0,0.00030663]
[1764007952594,0.24265911,88590.0,88589.0,0.00750663]
[1764007954453,0.24265911,88590.0,88589.0,0.00030663]
[1764007955082,0.3220821,88590.0,88589.0,0.00030663]
[1764007955328,0.72342511,88590.0,88589.0,0.00030663]
[1764007955736,0.72342511,88590.0,88589.0,0.00013663]
[1764007955737,0.6450821,88590.0,88589.0,0.00013663]
[1764007956073,0.65295795,88590.0,88589.0,0.00013663]
[1764007956278,0.22575911,88590.0,88589.0,0.00013663]
[1764007956694,0.23704495,88591.0,88589.0,0.02273933]
[1764007956887,0.22675911,88590.0,88589.0,0.0226027]
[1764007957088,0.22576709,88587.0,88585.0,0.00011689]
[1764007957349,0.23705193,88589.0,88586.0,0.2257686]
[1764007957556,0.01228795,88590.0,88587.0,0.02811]
[1764007957859,0.23804771,88590.0,88587.0,0.25387594]
[1764007958041,0.001,88590.0,88589.0,0.02811]
[1764007958196,0.22575911,88590.0,88589.0,0.02811]
[1764007958403,0.54875671,88591.0,88589.0,0.10369807]
[1764007958404,0.22575671,88591.0,88589.0,0.10369807]
[1764007958747,0.22575911,88590.0,88589.0,0.02811]
[1764007959970,0.22675911,88590.0,88589.0,0.02811]
[1764007960385,0.001,88590.0,88589.0,0.02811]
[1764007960896,0.001,88590.0,88589.0,0.25387166]
[1764007961086,0.001,88590.0,88589.0,0.02811]
[1764007961507,0.001,88590.0,88585.0,0.00011689]
[1764007961508,2.61129229,88586.0,88585.0,0.00011689]
[1764007961721,2.6637406,88586.0,88585.0,0.00011689]
[1764007961939,2.71487268,88586.0,88585.0,0.00011689]
[1764007962149,0.64195229,88586.0,88585.0,0.00011689]
[1764007962346,0.6790706,88586.0,88585.0,0.00011689]
[1764007963381,0.64195229,88586.0,88585.0,0.00011689]
[1764007963619,0.66511778,88586.0,88585.0,0.00011689]
[1764007963727,0.62662229,88586.0,88585.0,0.00011689]
[1764007964137,0.62762229,88586.0,88585.0,0.00011689]
[1764007965193,0.28929229,88586.0,88585.0,0.00011689]
[1764007965411,0.001,88586.0,88585.0,0.00011689]
[1764007966151,0.001,88586.0,88585.0,0.05605701]
[1764007966427,0.22576875,88587.0,88585.0,0.05605701]
[1764007966605,0.001,88586.0,88585.0,0.00967153]
[1764007966809,0.001,88586.0,88583.0,0.02076]
[1764007966810,0.01128859,88585.0,88582.0,0.2224305]
[1764007967011,0.23706108,88585.0,88582.0,0.22041486]
[1764007967217,0.01128859,88585.0,88581.0,0.02076]
[1764007967428,0.001,88586.0,88585.0,0.0002593]
[1764007967970,0.23705466,88588.0,88585.0,0.0002593]
[1764007968263,0.22576915,88587.0,88585.0,0.0002593]
[1764007968557,0.01128821,88588.0,88585.0,0.0002593]
[1764007968756,0.01128757,88593.0,88587.0,0.02893]
[1764007968958,0.00011682,88593.0,88591.0,0.22575584]
[1764007969169,0.22576676,88587.0,88586.0,0.05083]
[1764007969545,0.22576676,88587.0,88586.0,0.07976]
[1764007970755,0.23704171,88592.0,88586.0,0.07976]
[1764007970756,0.0112877,88592.0,88587.0,0.2257659]
[1764007970965,0.23704171,88592.0,88591.0,0.02893]
[1764007971163,0.00011682,88593.0,88591.0,0.02893]
[1764007971367,0.22575401,88592.0,88591.0,0.02893]
[1764007971663,0.00011682,88593.0,88591.0,0.02893]
[1764007972141,0.22586855,88593.0,88591.0,0.02893]
[1764007972666,0.22575401,88592.0,88591.0,0.02893]
[1764007973320,0.22576676,88587.0,88586.0,0.0072]
[1764007973898,0.23705136,88589.0,88586.0,0.23296885]
[1764007974296,0.23704974,88589.0,88588.0,0.02893]
[1764007974496,0.2257693,88586.0,88585.0,0.0002593]
[1764007974721,0.2257693,88586.0,88585.0,0.0074593]
[1764007974928,0.01128782,88591.0,88585.0,0.0363893]
[1764007975131,0.01128808,88589.0,88585.0,0.0291893]
[1764007975332,0.22576676,88587.0,88586.0,0.0072]
[1764007975536,0.24691273,88587.0,88586.0,0.0072]
[1764007975855,0.02114597,88587.0,88586.0,0.0072]
[1764007976057,0.02114597,88587.0,88586.0,0.2618993]
[1764007977039,0.02114597,88587.0,88586.0,0.3055293]
[1764007977241,0.02114597,88587.0,88586.0,0.07976]
[1764007977462,0.02114597,88587.0,88586.0,0.2618993]
[1764007978029,0.02114597,88587.0,88586.0,0.3155293]
[1764007978336,0.02114597,88587.0,88586.0,0.3091606]
[1764007979164,0.02114597,88587.0,88586.0,0.3019606]
[1764007979369,0.02114597,88587.0,88586.0,0.3091606]
[1764007979727,0.02114597,88587.0,88586.0,0.2555306]
[1764007980493,0.02114597,88587.0,88586.0,0.38633348]
[1764007981885,0.02114597,88587.0,88586.0,0.3091606]
[1764007983023,0.02114597,88587.0,88586.0,0.3101606]
[1764007983228,0.00342135,88587.0,88586.0,0.3101606]
[1764007985026,0.00342135,88587.0,88586.0,0.3091606]
[1764007985408,0.00011682,88593.0,88592.0,0.22575401]
[1764007985709,0.00011682,88593.0,88592.0,0.73144055]
[1764007985918,0.00011682,88593.0,88592.0,1.13144055]
[1764007986942,0.00011682,88593.0,88592.0,1.13344055]
[1764007987123,0.0002,88610.0,88609.0,0.2357107]
[1764007987470,0.00026155,88610.0,88609.0,0.2910007]
[1764007987665,0.00026155,88610.0,88609.0,0.43450416]
[1764007989426,0.00026155,88610.0,88609.0,0.01916]
[1764007989687,0.00026155,88610.0,88591.0,0.22575542]
[1764007989688,0.2257293,88602.0,88591.0,0.22575542]
[1764007989843,0.23701315,88603.0,88598.0,0.22573778]
[1764007990023,0.01128617,88604.0,88597.0,0.0072]
[1764007990223,0.23701101,88604.0,88601.0,0.22573037]
[1764007990481,0.22572599,88603.0,88602.0,0.04798966]
[1764007990683,0.01128668,88600.0,88596.0,0.24697306]
[1764007990920,0.0112868,88599.0,88596.0,0.02123]
[1764007991211,0.0112868,88599.0,88591.0,0.22575542]
[1764007991212,0.01128757,88593.0,88591.0,0.0072]
[1764007991347,0.23705289,88588.0,88585.0,0.0002593]
[1764007991553,0.01804,88592.0,88586.0,0.0072]
[1764007991749,0.01128757,88593.0,88586.0,0.0072]
[1764007992037,0.2257693,88586.0,88585.0,0.0002593]
[1764007992214,0.2540393,88586.0,88585.0,0.0002593]
[1764007992446,0.2965993,88586.0,88585.0,0.0002593]
[1764007992646,0.2965993,88586.0,88585.0,0.0012593]
[1764007992851,0.2965993,88586.0,88585.0,0.0002593]
[1764007993136,0.68212229,88586.0,88585.0,0.0002593]
[1764007993287,0.68513072,88586.0,88585.0,0.0002593]
[1764007993725,0.6908676,88586.0,88585.0,0.0002593]
[1764007994786,0.22580188,88574.0,88572.0,0.0072]
[1764007995007,0.74688474,88582.0,88573.0,0.02542437]
[1764007995220,0.74688474,88582.0,88578.0,0.22578958]
[1764007995463,0.56005903,88586.0,88578.0,0.22578958]
[1764007995665,0.01128731,88595.0,88591.0,0.22575457]
[1764007995906,0.323,88599.0,88594.0,0.02816]
[1764007996135,0.01128693,88598.0,88595.0,0.22574499]
[1764007996342,0.23702845,88597.0,88594.0,0.02816]
[1764007996604,0.23702845,88597.0,88591.0,0.0072]
[1764007996605,6.154e-05,88599.0,88598.0,0.04911]
[1764007997523,0.24689453,88599.0,88598.0,0.04911]
[1764007998131,0.02109681,88599.0,88598.0,0.04911]
[1764007998847,0.02109681,88599.0,88598.0,0.27484872]
[1764007999058,0.02109681,88599.0,88598.0,0.31600872]
[1764008001121,0.74708474,88610.0,88606.0,0.22571756]
[1764008001122,0.23699645,88609.0,88606.0,0.22571756]
[1764008001337,0.02109781,88608.0,88607.0,0.2257158]
[1764008001706,0.02109781,88608.0,88607.0,0.31386784]
[1764008001914,0.02109781,88608.0,88607.0,0.32386784]
[1764008002125,0.02109781,88608.0,88607.0,0.35202784]
[1764008002552,0.02109781,88608.0,88607.0,0.45503213]
[1764008004237,0.02109781,88608.0,88607.0,0.45603213]
[1764008005543,0.02109781,88608.0,88607.0,0.45412213]
[1764008005745,0.02109781,88608.0,88607.0,0.85512213]
[1764008006569,0.02087211,88608.0,88607.0,0.85512213]
[1764008006774,0.02087211,88608.0,88607.0,0.84512213]
[1764008006949,0.02087211,88608.0,88607.0,0.85512213]
[1764008007146,0.02087211,88608.0,88607.0,0.84512213]
[1764008007449,0.02087211,88608.0,88607.0,0.85512213]
[1764008008187,0.02087211,88608.0,88607.0,0.45412213]
[1764008008390,0.02087211,88608.0,88607.0,0.45512213]
[1764008011471,0.02087211,88608.0,88607.0,0.44512213]
[1764008011609,0.02087211,88608.0,88607.0,0.43875907]
[1764008012016,0.02087211,88608.0,88607.0,0.83875907]
[1764008012329,0.02087211,88608.0,88607.0,0.84875907]
[1764008014065,0.02087211,88608.0,88607.0,0.84155907]
[1764008014360,0.02087211,88608.0,88607.0,0.84875907]
[1764008017862,0.0012,88610.0,88608.0,0.49903148]
[1764008018065,0.0012,88610.0,88609.0,0.63039177]
[1764008018270,0.0002,88640.0,88638.0,0.22563574]
[1764008018442,0.00058948,88640.0,88639.0,0.09752]
[1764008020012,0.00058948,88640.0,88639.0,0.08752]
[1764008020281,0.00058948,88640.0,88639.0,0.12294437]
[1764008020858,8.842e-05,88640.0,88639.0,0.12294437]
[1764008021183,0.74708474,88660.0,88639.0,0.12294437]
[1764008021184,9.708e-05,88655.0,88654.0,0.24654613]
[1764008021481,0.0002139,88655.0,88654.0,0.05631]
[1764008021681,0.0002139,88655.0,88654.0,0.04275147]
[1764008021860,0.0002139,88655.0,88654.0,0.03555147]
[1764008022057,0.01128057,88648.0,88645.0,0.22561868]
[1764008022261,0.01128044,88649.0,88643.0,0.22562204]
[1764008022463,0.01128044,88649.0,88642.0,0.01]
[1764008022760,0.236908,88642.0,88639.0,0.03642437]
[1764008022987,0.22564449,88636.0,88634.0,0.02095]
[1764008023186,0.01128197,88637.0,88635.0,0.0072]
[1764008023386,0.22564449,88635.0,88634.0,0.02095]
[1764008023684,0.01128247,88633.0,88625.0,0.01909]
[1764008024046,0.22566424,88628.0,88625.0,0.01909]
[1764008024232,0.01128311,88628.0,88626.0,0.0072]
[1764008024424,0.01128311,88628.0,88614.0,0.01909]
[1764008024425,0.01128451,88617.0,88614.0,0.01909]
[1764008024552,0.23697747,88617.0,88615.0,0.0072]
[1764008024752,0.01128451,88617.0,88615.0,0.0072]
[1764008024952,0.22568816,88618.0,88615.0,0.0072]
[1764008024953,0.01128438,88618.0,88615.0,0.23289325]
[1764008025307,0.01128438,88618.0,88616.0,0.0072]
[1764008025511,0.98384187,88624.0,88617.0,0.22569033]
[1764008025711,0.01128324,88627.0,88623.0,0.22567505]
[1764008025926,0.22567139,88625.0,88619.0,0.22568449]
[1764008026131,0.01128362,88624.0,88620.0,0.22568269]
[1764008026326,0.011284,88621.0,88618.0,0.02256877]
[1764008026537,0.01128387,88622.0,88619.0,0.2256845]
[1764008026727,0.01128387,88622.0,88620.0,0.02597]
[1764008026933,0.23696208,88622.0,88620.0,0.02597]
[1764008027362,0.23696208,88622.0,88621.0,0.02763]
[1764008027610,0.01128362,88624.0,88617.0,0.0072]
[1764008027816,0.06252299,88640.0,88623.0,0.02763]
[1764008028019,0.74688474,88630.0,88626.0,0.22566741]
[1764008028196,0.01128273,88631.0,88628.0,0.22566115]
[1764008028404,0.23694126,88630.0,88627.0,0.21930263]
[1764008028609,0.23694126,88630.0,88628.0,0.07258947]
[1764008028817,0.22566741,88626.0,88625.0,0.0072]
[1764008029709,0.24677278,88626.0,88625.0,0.0072]
[1764008029910,0.22567505,88623.0,88622.0,0.0083]
[1764008030181,0.22567505,88623.0,88622.0,0.0155]
[1764008030182,0.02110537,88623.0,88622.0,0.0155]
[1764008030515,0.02110537,88623.0,88622.0,0.44246071]
[1764008030516,0.02110537,88623.0,88622.0,0.45246071]
[1764008030717,0.02110537,88623.0,88622.0,0.46964296]
[1764008031602,0.00369451,88623.0,88622.0,0.86964296]
[1764008033879,0.00369451,88623.0,88622.0,0.87064296]
[1764008034080,0.00369451,88623.0,88622.0,0.86964296]
[1764008034281,0.00369451,88623.0,88622.0,0.86444296]
[1764008034427,0.00369451,88623.0,88622.0,0.47768]
[1764008034625,0.00369451,88623.0,88622.0,0.48488]
[1764008034825,0.00369451,88623.0,88622.0,0.47768]
[1764008035027,0.00369451,88623.0,88622.0,0.48488]
[1764008035227,0.00369451,88623.0,88622.0,0.61037088]
[1764008035433,0.00369451,88623.0,88622.0,0.93337088]
[1764008035673,0.00369451,88623.0,88622.0,0.93137088]
[1764008035877,0.00369451,88623.0,88622.0,0.93237088]
[1764008036234,0.00369451,88623.0,88622.0,0.92237088]
[1764008036481,0.00369451,88623.0,88622.0,0.30262716]
[1764008036696,0.00369451,88623.0,88622.0,0.04439957]
[1764008036899,0.22936956,88623.0,88622.0,0.04439957]
[1764008037249,0.22936956,88623.0,88622.0,0.02203]
[1764008037462,0.22936956,88623.0,88622.0,0.01483]
[1764008037662,0.22936956,88623.0,88622.0,0.0082]
[1764008038220,0.00369451,88623.0,88622.0,0.04545822]
[1764008038422,0.00369451,88623.0,88622.0,0.04966]
[1764008038599,0.00369451,88623.0,88622.0,0.04866]
[1764008038805,0.22936956,88623.0,88622.0,0.0072]